{"text_format":"1","workbook":"xlsx","n_sheets":2,"sheets":["Приложение 1","Лист3"],"not_rendered":{"charts":0,"images":0,"macros":0,"external_links":0,"defined_names":1,"comments":0,"pivot_tables":0},"unopened":[],"bounds":{"document_bytes":16777216,"sheet_cells":100000,"rows_first":2000,"rows_last":500,"rows_between":2000,"halvings":0,"cell_chars":16384,"cell_head_chars":4096},"cells_cut":0,"cells_raw":0,"read":"whole","date_system":"1900"}

{"sheet":"Приложение 1","index":0,"n_rows":397,"n_cols":10,"rows_kept":397,"cut":false,"hidden":false,"merged":[[395,7,395,8],[236,9,236,10],[237,9,237,10],[239,9,239,10],[394,7,394,8],[315,7,315,10],[328,7,329,8],[330,7,330,8],[324,7,324,8],[324,9,324,10],[325,7,327,8],[325,9,327,10],[320,7,320,8],[320,9,320,10],[321,7,321,8],[321,9,321,10],[322,7,322,10],[323,7,323,10],[311,7,313,8],[311,9,313,10],[318,7,318,8],[318,9,318,10],[319,7,319,8],[319,9,319,10],[309,7,309,8],[309,9,309,10],[316,9,316,10],[317,7,317,8],[317,9,317,10],[294,9,300,10],[314,7,314,8],[314,9,314,10],[310,7,310,8],[310,9,310,10],[306,7,306,8],[306,9,306,10],[307,7,307,8],[307,9,307,10],[308,7,308,8],[308,9,308,10],[302,9,302,10],[303,7,303,8],[303,9,303,10],[304,7,304,8],[304,9,304,10],[305,7,305,8],[305,9,305,10],[186,7,188,10],[198,7,217,10],[226,7,226,8],[227,7,227,8],[301,7,301,8],[301,9,301,10],[157,7,166,8],[157,9,166,10],[156,7,156,8],[156,9,156,10],[294,7,300,8],[189,7,191,10],[192,7,194,10],[167,7,174,8],[167,9,174,10],[185,7,185,10],[134,7,134,8],[135,7,135,8],[120,9,127,10],[130,7,130,8],[131,7,131,8],[132,7,132,8],[133,7,133,8],[120,7,120,8],[127,7,127,8],[129,7,129,8],[118,7,118,8],[118,9,118,10],[119,7,119,8],[119,9,119,10],[133,9,133,10],[109,7,109,8],[116,7,116,8],[116,9,116,10],[117,7,117,8],[117,9,117,10],[128,7,128,8],[18,7,27,8],[18,9,27,10],[28,7,39,8],[28,9,39,10],[108,9,114,10],[115,7,115,8],[115,9,115,10],[110,7,110,8],[111,7,111,8],[112,7,112,8],[17,9,17,10],[16,7,16,8],[16,9,16,10],[14,9,14,10],[0,6,0,10],[5,5,5,6],[7,7,7,8],[14,7,14,8],[52,7,52,8],[5,0,6,0],[1,0,3,10],[5,7,6,8],[5,1,6,1],[5,3,5,4],[5,9,6,10],[17,7,17,8],[15,7,15,8],[15,9,15,10],[80,7,81,8],[82,7,83,8],[84,7,85,8],[40,7,46,8],[40,9,46,10],[47,9,54,10],[51,7,51,8],[54,7,54,8],[53,7,53,8],[50,7,50,8],[55,9,62,10],[58,7,58,8],[59,7,59,8],[60,7,60,8],[55,7,55,8],[78,7,79,8],[106,9,106,10],[63,9,67,10],[68,9,70,10],[102,7,102,8],[102,9,102,10],[86,7,86,8],[88,7,89,8],[90,7,91,8],[94,7,95,8],[96,7,97,8],[87,7,87,8],[92,7,93,8],[100,7,101,8],[104,7,104,8],[104,9,104,10],[105,9,105,10],[98,7,99,8],[228,7,228,8],[229,7,229,8],[230,7,230,8],[231,7,231,8],[107,9,107,10],[136,7,153,8],[136,9,153,10],[113,7,113,8],[114,7,114,8],[108,7,108,8],[232,7,232,8],[233,7,233,8],[238,7,238,8],[239,7,239,8],[234,7,234,8],[235,7,235,8],[236,7,236,8],[237,7,237,8],[249,7,249,8],[253,7,253,8],[257,7,257,8],[262,7,262,8],[240,7,240,8],[242,7,242,8],[247,7,247,8],[248,7,248,8],[278,7,278,8],[282,7,282,8],[286,7,286,8],[290,7,290,8],[264,7,264,8],[266,7,266,8],[270,7,270,8],[274,7,275,8],[339,7,339,8],[339,9,339,10],[340,7,345,8],[340,9,345,10],[346,7,346,8],[336,9,336,10],[337,9,337,10],[338,7,338,8],[338,9,338,10],[354,7,354,8],[354,9,354,10],[355,7,355,8],[355,9,355,10],[356,7,356,8],[346,9,346,10],[358,7,358,8],[358,9,358,10],[359,7,359,8],[359,9,359,10],[356,9,356,10],[357,7,357,8],[357,9,357,10],[360,7,360,8],[360,9,360,10],[367,9,367,10],[364,7,364,8],[364,9,364,10],[365,7,365,8],[365,9,365,10],[367,7,367,8],[361,9,361,10],[361,7,361,8],[386,7,386,8],[369,7,369,8],[362,7,362,8],[362,9,362,10],[363,7,363,8],[363,9,363,10],[370,9,374,10],[375,9,379,10],[375,7,380,8],[369,9,369,10],[347,9,353,10],[347,7,353,8],[366,7,366,8],[366,9,366,10],[368,7,368,8],[368,9,368,10],[393,7,393,8],[389,7,389,8],[390,7,390,8],[391,7,391,8],[392,7,392,8],[331,7,331,8],[370,7,374,8],[387,7,387,8],[388,7,388,8],[381,7,385,8]]}
[null,null,null,null,null,null,"Приложение 1 "]
["Информация о реализации в Кромском районе муниципальных целевых  программ в 2012 году"]
[]
[]
[]
["№ п/п","Наименование программного  документа, мероприятия, целевого индикатора","предусмотрено программой  тыс.руб.","Финансирование",null,"Освоено",null,"Результаты выполнения мероприятий",null,"Достижение плановых значений целевых индикаторов"]
[null,null,"сумма, тыс.руб.","сумма, тыс.руб.","Проценты,            %","сумма, тыс.руб.","Проценты,            % "]
["1.","Долгосрочная муниципальная целевая программа \"Развитие муниципальной службы в Кромском районе на 2012-2014 годы\"",36,33.165999999999997,92,33.165999999999997,92.1]
[null,"в том числе"]
[null,"местный бюджет",36,33.165999999999997,100,33.165999999999997,92.1]
[null,"областной бюджет"]
[null,"федеральный бюджет"]
[null,"внебюджетные источники"]
[null,"в том числе по мероприятиям:"]
[null,"1. Повышение квалификации муниципальных служащих по 72-часовой программе (с получением свидетельства, удостоверений государственного образца), в том числе обучение по профильным направлениям деятельности по краткосрочным программам",36,33.165999999999997,100,33.165999999999997,92.1," - усовершенствование  нормативной правовой базы по вопросам муниципальной службы;\n - усовершенствование кадрового обеспечения процессов муниципального управления;\n - укрепление доверия граждан к деятельности органов местного самоуправления;\n - повышение профессионального уровня муниципальных служащих;\n - рост количества муниципальных служащих, прошедших профессиональную переподготовку, повышение квалификации, до 27.\n",null,"Прошли повышение квалификации 2012 году по  72-часовой программе 16 муниципальных служащих"]
[null,"2. Организация и проведение занятий с муниципальными служащими администрации по вопросам изменения действующего федерального и областного законодательства о муниципальной службе","-","-","-","-","-","Развитие профессиональных качеств",null,"проведено 4 ежеквартальных учебы"]
[null,"3. Участие муниципальных служащих администрации района повышение квалификации на обучающих семинарах для муниципальных служащих, включенных в состав кадрового резерва","-","-","-","-","-","Развитие профессиональных качеств, повышение квалификации на обучающих семинарах для муниципальных служащих, включенных в состав кадрового резерва",null,"обучено 4 чел."]
[null,"4.  Участие в совещаниях, семинарах, проводимых для работников органов местного самоуправления","-","-","-","-","-","Развитие профессиональных качеств"]
["2.","Долгосрочная  муниципальная целевая программа \"Сохранение и реконструкция военно-мемориальных объектов в Кромском районе на 2011-2015 годы\"",15,15,100,15,100,"мероприятие выполнено "]
[null,"в том числе :"]
[null,"местный бюджет",15,15,100,15,100]
[null,"областной бюджет"]
[null,"федеральный бюджет"]
[null,"внебюджетные источники"]
[null,"в том числе по мероприятиям:"]
[null,"Комплекс работ по ремонту и реставрации могилы советских воинов в с.Красниково",15,15,100,15,100]
[null,"в т.ч. местный бюджет",15,15,100,15,100]
[null,"областной бюджет"]
["3.","Муниципальная целевая программа \"Развитие архивного дела в Кромском  районе Орловской области на 2012-2016 годы\"",80,29,36,29,100,"Приобретено компьютерное оборудование, оборудовано второе  рабочее место, ремонт  дополнительного помещения не производился",null,"Оснащение архива современными техническими средствами способствует своевременному обеспечинию  выполнению социальных запросов граждан"]
[null,"в том числе :"]
[null,"местный бюджет",80,29,36,29,100]
[null,"областной бюджет"]
[null,"федеральный бюджет"]
[null,"внебюджетные источники"]
[null,"в том числе по мероприятиям:"]
[null,"Ремонт дополнительного помещения, установка жалюзей",40,0,0,0,0]
[null,"в т.ч. местный бюджет",40,0,0,0,0]
[null,"Оснащение архива современными техническими средствами",40,29,73,29,100]
[null,"в т.ч. местный бюджет",40,29,73,29,100]
[null,"областной бюджет"]
["4.","Программа \"Развитие физической  культуры и спорта в Кромском районе на 2011-2015 годы\"",320,320,100,320,100,"Результатом программных мероприятий в 2012 году стало  - улучшение качества жизни подрастающего поколения,  их психологической устойчивости, занятости детей и подростков, укрепление их здоровья и отвлечение от пагубных пристрастий и вредных привычек."]
[null,"в том числе :"]
[null,"местный бюджет",300,300,100,300,100]
[null,"областной бюджет"]
[null,"федеральный бюджет"]
[null,"внебюджетные источники",20,20,100,20,100]
[null,"в том числе по мероприятиям:"]
[null,"1. Физическое воспитание школьников",230,230,100,230,100]
[null,"в том числе:"]
[null,"местный бюджет",210,210,100,210,100]
[null,"внебюджетные источники",20,20,100,20,100,"Проведены соревнования по футболу и минифутболу"]
[null,"Спартакиада школьников",5,5,100,5,100]
[null,"Смотр -конкурс спортивных баз образовательных учреждений",5,5,100,5,100,"выполнено "]
[null,"Приобретение спортинвентаря",20,20,100,20,100,"Приобретение хоккейной и  футбольной формы"]
[null,"Участие в областных спортивных мероприятиях",180,180,100,180,100,"выполнено"]
[null,"2. Спортивно - оздоровительная работа и массовый спорт в учреждениях, предприятиях, объединениях",65,65,100,65,100,"выполнено"]
[null,"в том числе:"]
[null,"местный бюджет",65,65,100,65,100]
[null,"Проведение районных  спортивных праздников ",25,25,100,25,100]
[null,"Папа , мама, я - спортивнпая семья ",10,10,100,10,100]
[null,"Сельские спортивные игры",20,20,100,20,100]
[null,"Проведение турнира по мини - футболу",5,5,100,5,100]
[null,"Проведение первенства района по волейболу",5,5,100,5,100]
[null,"3. Спортивно-оздоровительная работа по месту жительства",10,10,100,10,100]
[null,"в том числе:"]
[null,"местный бюджет",10,10,100,10,100]
[null,"Проведение соревнований среди дворовых команд",5,5,100,5,100]
[null,"Проведение смотра спортивных площадок",5,5,100,5,100]
[null,"4. Физическая культура и спорт инвалидов",15,15,100,15,100]
[null,"в том числе:"]
[null,"местный бюджет",15,15,100,15,100]
["5.","Районная целевая комплексная программа \"Молодёжь Орловщины 2011-2015 годы\"",1574.5,241.3,15.3,241.3,100]
[null,"в том числе :"]
[null,"местный бюджет","20",20,100,20,100]
[null,"областной бюджет"]
[null,"федеральный бюджет",1539.5,218.3,14.1,218.3,100]
[null,"внебюджетные источники",15,3,20,3,100]
[null,"в том числе по мероприятиям"]
[null,"1. Организация ярмарок вакансий",3,3,100,3,100,"Приняли участие в ярмарке вакансий                                             49 человек"]
[null,"в т.ч. федеральный бюджет",3,3,100,3,100]
[null,"2. Содействие  социальной адаптации безработной и незанятой молодежи",0.5,0,0,0,0,"Получили услуги по социальной адаптации 11 человек"]
[null,"в т.ч. федеральный бюджет",0.5,0,0,0,0]
[null,"3. Содействие организации собственного дела безработными гражданами из числа молодежи ",470,62.5,13.3,62.5,100,"Денежных средств было выделено  всем  3 безработным гражданам из числа молодежи, обратившимся в службу занятости"]
[null,"федеральный бюджет",470,62.5,13.3,62.5,100]
[null,"4. Организация профобучения выпускников общеобразовательных учреждений, не имеющих профессии",120,10.5,9,10.5,100,"Получили специальности 3 человека"]
[null,"в т.ч. федеральный бюджет",120,10.5,9,10.5,100]
[null,"5. Содействие трудоустройству выпускников общеобразовательных учреждений, не имеющих профессии",840,0,0,0,0,"трудоустроено 10 человек"]
[null,"в т.ч. федеральный бюджет",840,0,0,0,0]
[null,"6. Организация временного трудоустройства выпускников начального и среднего профессионального образования в возрасте 18 - 20 лет",6.8,30.4,"в 4,5 р.",30.4,100,"Трудоустроено 3 человека выпускников начального и среднего профобразования в возрасте от 18 до 20 лет"]
[null,"в т.ч. федеральный бюджет",6.8,30.4,"в 4,5 р.",30.4,100]
[null,"7. Организация общественных работ  для безработных граждан из числа молодежи",98,106.4,108.6,106.4,100,"организованы общественные работы                                                                 для 10 граждан."]
[null,"в т.ч. федеральный бюджет",98,106.4,108.6,106.4,100]
[null,"8. Организация профориентационных услуг для молодежи",1.2,5.5,"в 4,6 р.",5.5,100,"оказаны профориентационные услуги                                                                                для 151  граждана"]
[null,"в т.ч. федеральный бюджет",1.2,5.5,"в 4,6 р.",5.5,100]
[null,"9. Духовно - нравственное и гражданско -патриотическое воспитание подростков и молодежи",10,10,100,10,100,"Проведен конкурс бардовской песни"]
[null,"в т.ч.местный бюджет ",10,10,100,10,100]
[null,"10. Профилактика ассоциальных явлений в молодежной среде ",10,10,100,10,100,"Проведены спортивные соревнования с подростками, состоящими на учёте в комиссии по делам несовершеннолетних; конкурс рисунков и плакатов на тему                                                                                                                       \"Я выбираю жизнь\""]
[null,"в т.ч. местный бюджет ",10,10,100,10,100]
[null,"11. Социальная поддержка молодых семей",12,0,0,0,0]
[null,"в т.ч. внебюджетные источники",12,0,0,0,0]
[null,"12. Поддержка талантливой молодежи и молодежных инициатив",3,3,100,3,100]
[null,"в т.ч. внебюджетные источники",3,3,100,3,100]
["6.","Районная целевая комплексная программа \"Обеспечение жильём молодых семей 2012-2015 годы\"",182.6,182.6,100,182.6,100,"Получила свидетельства о социальной выплате 1 молодая семьи. Отделом по работе с молодёжью, ФК и спорту ведётся приём заявлений, разъяснительно-консультационная работа. Муниципальной жилищной комиссией формируются списки молодых семей - участников программы. В настоящее время в списке нуждающихся -  29 семей."]
[null,"в том числе :"]
[null,"местный бюджет",182.6,182.6,100,182.6,100,null,null,"Выданы свидетельства о выделении социальных выплат  1 семье."]
[null,"областной бюджет"]
[null,"федеральный бюджет"]
[null,"внебюджетные источники"]
["7.","Муниципальная целевая программа \"Комплексные меры противодействия злоупотреблению  наркотиками  и их незаконному обороту  на 2010-2014 г.г.\"",4,4,100,4,100,"В районе стабильная наркоситуация.  Сокращается  число  упортебляющих наркотические  и психотропные вещества, повышается  антинаркотическая ориентация общества, привлечение большего количества людей к занятиям физкультурой и спортом,  здоровому образу жизни;увеличение числа изъятий из незаконного оборота наркотических средств и психотропных веществ. По состоянию на 1 января 2013 года в БУЗ Орловской области  \"Кромская ЦРБ\"  не состоят на учета лица, употребляющие наркотические вещества"]
[null,"в том числе "]
[null,"местный бюджет",4,4,100,4,100]
[null,"областной бюджет"]
[null,"федеральный бюджет"]
[null,"внебюджетные источники"]
[null,"в том числе по мероприятиям"]
[null,"1. Организационные меры",null,null,null,null,null,"Проводится ежегодный анализ состояния работы по противодействию злоупотреблению наркотиками и их незаконному обороту, обобщение административной, судебной, следственной практики по делам о правонарушениях и преступлениях. Выявляются лица допризывного возраста, употребляющие наркотические и психотропные вещества с целью предотвращения их призыва на военную службу, а также уволенные с воинской службы за употребление наркотических средств для постановки на учет. Совместно с БУЗ Орловской области \"Кромской ЦРБ\", отделом образования, отделом по работе с молодежью и спортом проведена 1 научно - практическая конференция по проблемам профилактики наркотических заболеваний среди молодежи."]
[null,"2.Профилактика злоупотребления наркотическими средствами и психотропными веществами",2,2,100,2,100,"Ежегодно проводятся круглые столы с участием старшеклассников во всех школах района,  проведено  в 2010 г. - 35.; в 2011 году - 37, в 2012 году -35, проведено 2 обучающих семинара в рамках месячников \"Нет - наркотикам и СПИДу!\", проведено 2 месячника по повышению эффективности информационной и образовательной работы среди молодежи и подростков, направленной на пропаганду здорового образа жизни. Проведен смотр - конкурс плакатов , рисунков, опубликовано 8 тематических страниц и подборок в районной газете \"Заря\", проведено около 95 просветительских бесед и лекций."]
[null,"3. Подготовка специалистов, занимающихся профилактикой и лечением наркомании и токсикомании.",null,null,null,null,null,"Проведены районные семинары по проблемам наркомании с директорами учебных заведений, классными руководителями, врачами подростковых кабинетов."]
[null,"4. Лечение и реабилитация лиц, допускающих немидицинское потребление наркотических  средств и психотропных веществ ",null,null,null,null,null,"выполнено"]
[null,"5. Культурно - массовые и спортивно - туристические мероприятия.",2,2,100,2,100,"В целях пропаганды здорового образа жизни среди подростков и молодежи в районе действует 200 кружков различных направлений, традиционно проводятся районные спортивные праздники, личные первенства по шахматам, соревнования \"Веселые старты\" и др."]
["8.","Долгосрочная муниципальная  целевая программа \"Совершенствование системы профилактики правонарушений и усиление борьбы с преступностью на территории Кромского района               на 2011-2015 годы\"",2.5,2.5,100,2.5,100]
[null,"в том числе :"]
[null,"местный бюджет",2.5,2.5,100,2.5,100]
[null,"областной бюджет"]
[null,"федеральный бюджет"]
[null,"внебюджетные источники"]
[null,"в том числе по мероприятиям"]
[null,"1. Организационные мероприятия","-","-","-","-","-","Работает муниципальная  межведомственная  комиссия по профилактике правонарушений и преступлений на территории Кромского района"]
[null,"2. Профилактические  мероприятия по защите прав и свобод,  жизни, здоровья и собственности граждан","-","-","-","-","-","Прокуратурой района, администрацией района осуществляется надзор за соблюдением трудового законодательства в части своевременной выплаты заработной платы, проводятся запланированные мероприятия по защите прав и свобод,  жизни, здоровья и собственности граждан,  проводятся мероприятия по защите прав потребителей, выявлению и профилактике  правонарушений в сфере потребительского рынка."]
[null,"3.Профилактика среди лиц, проповедующих экстремизм, подготавливающих и замышляющих террористические акты","-","-","-","-","-","Проводятся оперативно-розыскные и профилактические мероприятия по обеспечению защищенности населения от диверсионно-террористических актов"]
[null,"4. Профилактика и противодействие организованной преступности и коррупции","-","-","-","-","-","Проводятся мероприятия по противодействию коррупционным проявлениям"]
[null,"5. Профилактика правонарушений в сфере защиты государственной, муниципальной и иных форм собственности","-","-","-","-","-","Реализуется комплекс мер по защите государственной, муниципальной и иных форм собственности, проводятся прверки, выявляются административные правонарушения"]
[null,"6. Профилактика правонарушений в общественных местах",2,2,100,2,100,"Проводятся профилактические рейды по выявлению фактов продажи алкогольной и табачной  продукции  несовершеннолетним, мероприятия по охране общественного порядка, осуществляется контроль за образом жизни и поведением лиц, освободившихся из мест лишения свободы"]
[null,"7. Профилактика правонарушений и преступлений, связанных с распространением алкоголизма, незаконным оборотом наркотиков",0.5,0.5,100,0.5,100,"Ведется  мониторинг наркоситуации в районе, Кромским межрайонным отделом Управления ФСКН России по Орловской области регулярно проводятся комплексные операции, направленные на пресечение незаконного оборота наркотиков и их контрабанды, обнаружение и уничтожение незаконных посевов наркосодержащих культур, организуются профилактические мероприятия в образовательных учреждениях"]
[null,"8. Профилактика правонарушений несовершеннолетних и молодежи","-","-","-","-","-","Проведены рабочие встречи с руководством учебных заведений , выявлены лица, предрасположенные к совершению правонарушений, в отношении их проведена профилактически-предупредительная работа, организованы и проведены профилактические мероприятия по пропаганде здорового образа жизни. Организована поездка профилактической направленности для несовершеннолетних  учащихся образовательных учреждений Кромского района в Шаховскую воспитательную колонию. Проводится работа по выявлению, принятию на учет и  организации индивидуальной  профилактической работы с несовершеннолетними и семьями, находящимися в социально опасном положении. Ведется работа по обеспечению  жильем  лиц из числа детей-сирот и детей, оставшихся без попечения родителей, в 2012 году приобретено 2  жилых помещения."]
[null,"9.Информационно- методическое обеспечение профилактической деятельности","- ","-","- "," -"," -","Население  района  регулярно информируется через районную  газету \"Заря\" о принимаемых мерах по преодолению детской безнадзорности и преступности, пропагандируется патриотизм, здоровый образ жизни подростков и молодежи, ориентация на духовные ценности, освещается информация о проблемах наркомании, пьянства и алкоголизма."]
["9.","Долгосрочная  районная программа  развития образования в Кромском районе на 2011-2015 годы",2142.9,2098.1660000000002,98,{"$f":"F139+F140","v":2098.1660000000002},100,"\n10 пед.работников награждены грантом Главы района по 10 тыс. рублей, 11 школьников удостоены гранта Главы района по 5 тыс. рублей. Установлена система ГЛОНАСС на автобусы Кромской средней, Гостомльской основной школ, видеонаблюдение в Кромской начальной школе, приобретались и перезаряжались огнетушители в общеобразовательные учреждения, проводились пропитки деревянных конструкций и замер сопротивления изоляции контура сопротивления.Произведен ремонткрыши, столовой Вожовской школы, заменены окна в дошкольной группе Коровье - Болотовской школы, сделан водопровод, канализация в Кутафинской школе, ремонт спортзала, электропроводки в столовой в Черкасской школе, ремонт крыши д.с.№1 в Кромской начальной школе.\n"]
[null,"в том числе :"]
[null,"местный бюджет",2142.9,2098.1660000000002,98,2098.1660000000002,100]
[null,"областной бюджет"]
[null,"федеральный бюджет"]
[null,"внебюджетные источники"]
[null,"в том числе по мероприятиям:"]
[null,"Совершенствование учительского корпуса",100,100,100,100,100]
[null,"в т.ч. местный бюджет",100,100,100,100,100]
[null,"Совершенствование системы поддержки талантливых детей",50,50,100,50,100]
[null,"в т.ч. местный бюджет",50,50,100,50,100]
[null,"Обеспечение всеобщего доступа  к современным  информационным образовательным ресурсам, внедрение программ дистанционного обучения",28.8,28.8,7.0000000000000007E-2,28.8,100]
[null,"в т.ч. местный бюджет",28.8,28.8,7.0000000000000007E-2,28.8,100]
[null,"областной бюджет","-","-","-","-","-"]
[null,"Приведение учебно - материальной базы в соответствии с современными требованиями",{"$f":"C139-C144-C146-C148-C154","v":1869.1000000000001},1824.36,97.6,1824.36,100]
[null,"в т.ч. местный бюджет"]
[null,"областной бюджет"]
[null,"Обеспечение безопасности учащихся , учебных учреждений и образовательного процесса в современных условиях ",95,95,100,95,100]
[null,"в т.ч. местный бюджет",95,95,100,95,100]
[null,"областной бюджет"]
["10.","Областная программа \"Программа наказов избирателей депутатам Кромского районного Совета народных депутатов на 2012 год",950,950,100,950,{"$f":"G159","v":100}]
[null,"в том числе :",null,null,null,null,null,"Ремонт МБОУ КР ОО \"Вожовская средняя общеобразовательная школа им. Пузырева\", МБОУ КР ОО \"Кромская средняя общеобразовательная школа\", МБОУ КР ОО \"Шаховская средняя общеобразовательная школа\", установка окон   МБОУ КР ОО \"Кривчиковская средняя общеобразовательная школа\", обустройство столовой,  МБОУ КР ОО \"Кутафинская средняя общеобразовательная школа\"   "]
[null,"местный бюджет",950,950,100,950,{"$f":"G164","v":100}]
[null,"областной бюджет"]
[null,"федеральный бюджет"]
[null,"внебюджетные источники"]
[null,"в том числе по мероприятиям:"]
[null,"Капитальные вложения, всего ",900,900,{"$f":"E166","v":100},900,{"$f":"G166","v":100}]
[null,"в том числе:"]
[null," местный бюджет",900,900,100,900,100]
[null,"Из общей суммы капвложений:"]
[null," - ремонт школ, всего",350,350,100,350,100,"отремонтированы водопроводы в сельских поселениях, заменены насосы на башнях и т.д."]
[null,"в том числе:"]
[null,"местный бюджет",350,350,100,350,100]
[null," - ремонт водопроводов в сельских поселениях.",550,550,100,550,100]
[null,"в том числе:"]
[null,"местный бюджет",550,550,100,550,100]
[null,"- приобретение основных средств",50,50,100,50,100]
[null,"Прочие нужды"]
["11.","Областная программа \"Программа наказов избирателей депутатам Орловского областного Совета народных депутатов на 2012 год",510.4,510.4,{"$f":"E179","v":100},510.4,{"$f":"G179","v":100}]
[null,"в том числе :"]
[null,"местный бюджет"]
[null,"областной бюджет",510.4,510.4,100,510.4,100]
[null,"федеральный бюджет"]
[null,"внебюджетные источники"]
[null,"в том числе по мероприятиям:"]
[null,"Капитальные вложения, всего ",410.4,410.4,100,410.4,100]
[null,"в том числе:"]
[null," областной бюджет",410.4,410.4,100,410.4,100]
[null,"Прочие нужды",100,100,100,100,100]
[null,"1. Приобретение компьютеров для МБОУ КР ОО \"Коровье - Болотовская средняя общеобразовательная школа\", МБОУ КР ОО \"Кромская начальная общеобразовательная школа\"",{"$f":"C189","v":74.8},{"$f":"D189","v":74.8},{"$f":"E189","v":100},{"$f":"F189","v":74.8},{"$f":"G189","v":100},"Обеспечение условий для удовлетворения образовательными услугами. Соответствие САНПИНам"]
[null,"в том числе:"]
[null,"областной бюджет",74.8,74.8,100,74.8,100]
[null,"2. Устройство душевых в спортзале МБОУ КР ОО \"Глинская средняя общеобразовательная школа\"",{"$f":"C192","v":60},{"$f":"D192","v":60},{"$f":"E192","v":100},{"$f":"F192","v":60},{"$f":"G192","v":100},"Обеспечение условий для удовлетворения образовательными услугами. Соответствие САНПИНам"]
[null,"в том числе:"]
[null,"областной бюджет",60,60,100,60,100]
[null,"3. Текущий ремонт МБОУ КР ОО \"Гуторовская средняя общеобразовтельная школа  им. Куренцова А.И.\", МБОУ КР ОО \"Закромско - Хуторская основная общеобразовательная школа\", МБОУ КР ОО \"Гостомльская основная общеобразовательная школа\".    ",{"$f":"C195","v":39.4},{"$f":"D195","v":39.39},{"$f":"E195","v":100},{"$f":"F195","v":39.39},{"$f":"G195","v":100},"Обеспечение условий для удовлетворения образовательными услугами. Соответствие САНПИНам"]
[null,"в том числе:"]
[null,"областной бюджет",39.4,39.39,100,39.39,100]
[null,"4. Приобретение основных фондов "]
[null,null,236.2,236.2,100,236.2,100]
[]
["12.","Программа \"Обращение с отходами производства и потребления\"",350,0,0,0,0,"Денежные средства не выделялись ввиду их отсутствия                     В рамках реализации долгосрочной областной целевой   программы  \"Обращение с отходами производства и потребления (2012-2014 годы) было выделено 500 тыс. руб. на утилизацию  пришедших в негодность пестицидов: - с территории  Большеколчевского сельского поселения -240 тыс. руб.; - с территории  Бельдяжского сельского поселения - 260 тыс. руб."]
[null,"в том числе :"]
[null,"местный бюджет","300",0,0,0,0]
[null,"областной бюджет",null,0,0]
[null,"федеральный бюджет"]
[null,"внебюджетные источники",50,0,0,0,0]
[null,"в том числе по мероприятиям"]
[null,"1. Строительство фильтра, оборудование бытового помещения, ограждение, организация мониторинга и учёта ТБО",359,0,0,0,0]
[null,"в т.ч. местный бюджет",359,0,0,0,0]
[null,"2. Строительство  подъездного пути с твёрдым покрытием к участку ТБО",241,0,0,0,0]
[null,"в т.ч. местный бюджет",241,0,0,0,0]
[null,"3. Капитальный ремонт специализированной техники ДТ-75М и ТО-18А для работ с отходами на участке ТБО ",30,0,0,0,0]
[null,"внебюджетные источники",30,0,0,0,0]
[null,"областной бюджет",0,0,0,0,0]
[null,"федеральный бюджет",0,0,0,0,0]
[null,"4. Рекультивация отработанной территории участка ТБО",10,0,0,0,0]
[null,"в т.ч. внебюджетные источники",10,0,0,0,0]
[null,"5.Реконструкция 2 контейнерных площадок в п. Кромы",20,0,0,0,0]
[null,"в т.ч. внебюджетные источники",20,0,0,0,0]
[null,"6. Утилизация пришедших в негодность пестицидов",0,0,0,0,0]
["13.","Муниципальная целевая программа обеспечения безопасности дорожного движения на территории Кромского района 2011-2013 годах",1825,1825,100,1825,100]
[null,"в том числе :"]
[null,"бюджеты поселений",1825,1825,100,1825,100]
[null,"областной бюджет"]
[null,"федеральный бюджет"]
[null,"внебюджетные источники"]
[null,"в том числе по мероприятиям"]
[null,"1. Устройство дорог , всего"]
[null,"2. Устройство, ремонт  и очистка от снега автомобильных дорог, всего",1105,1105,100,1105,100," Очистка от снега автомобильных дорог."]
[null,"в т.ч. бюджеты поселений",1105,1105,100,1105,100]
[null,"3. Освещение автомобильных дорог",705,705,100,705,100,"замена ламп, оплата за электричество"]
[null,"в т.ч. бюджеты поселений",705,705,100,705,100]
[null,"4. Полный переход на энергосберегающие лампы освещения автомобильных дорог"]
[null,"в т.ч. местный бюджет"]
[null,"5. Оборудование подходов с двух сторон  к пешеходным переходам в  п.Кромы",15,15,100,15,100,"Оборудование подходов с двух сторон к 4 пешеходным переходам в п.Кромы"]
[null,"в т.ч. бюджеты поселений",15,15,100,15,100]
[null,"6. Обследование железнодорожных переездов на предмет обеспечения безопасности дорожного  движения","-","-",null,null,null,"Финансирование не требуется"]
[null,"7.Изучение и анализ общественного мнения   о проблемах обеспечения безопасности дорожного движения, путях их реализации, работе ГИБДД, правоохранительных органов, организаций. Проведение опросов общественного мнения.","-","-",null,null,null,"Финансирование не требуется"]
[null,"8.Регулярное освещение вопросов безопасности дорожного движения в районной газете  «Заря»","-","-",null,null,null,"Финансирование не требуется",null,"в районной  газете \"Заря\"   размещено 10 статей."]
[null,"9. Проведение заседаний районной комиссии по безопасности дорожного движения.","-","-",null,null,null,"Финансирование не требуется",null,"проведено 4 заседания"]
[null,"10. Организация  проведения предрейсовых смотров водителей предприятий и организаций всех форм собственности","-","-",null,null,null,"Финансирование не требуется"]
[null,"11. Проведение бесед, встреч, конкурсов, викторин с учащимися, родителями и педагогическими коллективами в учреждениях образования района","-","-",null,null,null,"Финансирование не требуется",null,"проведено 4 встречи"]
["14.","Районная целевая программа              \"О разработке документов территориального планирования Кромского района на 2009-2012 годы\"",4022,1212.9000000000001,30,1212.9000000000001,100,"Подрядными организациями выполнены работы по разработке генеральных планов            11 сельских поселений Кромского района"]
[null,"в том числе :"]
[null,"местный бюджет",4022,618.4,15,618.4,100]
[null,"областной бюджет",null,594.5,0,594.5,100]
[null,"федеральный бюджет"]
[null,"внебюджетные источники"]
[null,"в том числе по мероприятиям:"]
[null,"1. Обновление планов и карт на территории района, городского и сельских поселений",2250,0,0,0,0,"Мероприятие не выполнено в связи с  отсутствием денежных средств"]
[null,"2. Разработка местных нормативов градостроительного проектирования",250,0,0,0,0,"Мероприятие не выполнено в связи с  отсутствием денежных средств"]
[null,"3. Разработка генеральных планов  сельских поселений и поселка Кромы",1422,1189,84,1189,100,"Разработано 11 генеральных планов сельских поселений Кромского района"]
[null,"в том числе :"]
[null,"местный бюджет",222,594.5,268,594.5,100]
[null,"областной бюджет",0,594.5,0,594.5,100]
[null,"4. Создание и ведение информационной системы обеспечения градостроительной деятельности",100,23.9,24,23.9,100,"Прибретено техническое оборудование для обеспечения ведения информационной системы обеспечения градостроительной деятельности"]
[null,"в том числе :"]
[null,"местный бюджет",100,23.9,24,23.9,100]
[null,"областной бюджет",0,0,0,0,0]
["15.","Муниципальная программа \"Энергосбережение и повышение энергетической эффективности Кромского района на 2010-2014 годы\"",2569.6,2687.43,110,2837.43,100,"Обеспечена экономия электрической, тепловой энергии, природного газа и воды в натуральном и стоимостном выражении; Снизились потери энергетических ресурсах при их производстве и передаче на 3%."]
[null,"в том числе :"]
[null,"местный бюджет",2569.6,234.73,9,456.43,100]
[null,"областной бюджет",0,2452.6999999999998,0,2751,100]
[null,"в том числе по мероприятиям:"]
[null,"Проведение энергетического обследования",650,20,3,318.3,100,"Выполнено энергетическое обследование 25 учреждений с участием муниципального образования"]
[null,"Местный бюджет",650,20,3,20,100]
[null,"Областной бюджет"]
[null,"Федеральный бюджет"]
[null,"Обучение сотрудников основам энергосбережения",20,77.13,386,77.13,100,"Произведено обучение 6 ответственных в области энергосбережения"]
[null,"Местный бюджет",20,77.13,386,77.13,100]
[null,"Областной бюджет"]
[null,"Федеральный бюджет"]
[null,"Реконструкция  тепловой защиты наружных  ограждений  зданий, утепление фасадов, оконных проемов",200,30,13,30,100,"Замена оконных  блоков в здании районного дома культуры"]
[null,"Местный бюджет",200,30,13,30,100]
[null,"Областной бюджет"]
[null,"Федеральный бюджет"]
[null,"Строительство модульных котельных и разработка ПСД с использованием энергоэффективного оборудования с высоким коэффициентом полезного действия",1449.6,2560.3000000000002,187,2560.3000000000002,100,"Строительство котельной для отопления и ГВС детского сада № 2                                                              - Разработка проектной и рабочей документации на строительство транспортабельной котельной установки для теплоснабжения МБОУ \"Шаховская средняя общеобразовательная школа\""]
[null,"Местный бюджет",1449.6,107.6,7,107.6,100]
[null,"Областной бюджет",null,2452.6999999999998,0,2452.6999999999998,100]
[null,"Федеральный бюджет"]
[null,"Замена насоса горячего водоснабжения на менее мощный",100,0,0,0,0,"Мероприятие не выполнено в связи с  отсутствием денежных средств"]
[null,"Местный бюджет",100,0,0,0,0]
[null,"Областной бюджет"]
[null,"Федеральный бюджет"]
[null,"Замена насоса отопления на менее мощный ",100,0,0,0,0,"Мероприятие не выполнено в связи с  отсутствием денежных средств"]
[null,"Местный бюджет",100,0,0,0,0]
[null,"Областной бюджет"]
[null,"Федеральный бюджет"]
[null,"Установка счетчика объема газа с электронной коррекцией ",50,0,0,0,0,"Мероприятие не выполнено в связи с  отсутствием денежных средств"]
[null,"Местный бюджет"]
[null,"Областной бюджет"]
[null,"Федеральный бюджет"]
[null,"Установка приборов учета воды на здания соцсферы",0,0,0,0,0]
[null,"Местный бюджет"]
[null,"Областной бюджет"]
[null,"Федеральный бюджет"]
["16.","Муниципальная адресная программа \"Капитальный ремонт многоквартирных жилых домов на территории  Кромского района в 2012 году\"",5190.3909999999996,5190.3909999999996,100,5190.3909999999996,100,"Капитально отремонтировано 4 многоквартирных жилых дома общей площадью 4015,2 кв.м. , отремонтированы фасады, крыши, подвальные помещения, системы водоснабжения и водоотведения. Установлены общедомовые приборы учета потребления воды, элктроэнергии."]
[null,"в том числе :"]
[null,"местный бюджет",341.68,341.68,100,341.68,100]
[null,"областной бюджет",828.75400000000002,828.654,100,828.654,100]
[null,"федеральный бюджет",3760.4369999999999,3760.4369999999999,100,3760.4369999999999,100]
[null,"внебюджетные источники",259.52,259.52,100,259.52,100]
[null,"в том числе по мероприятиям"]
["17.","Муниципальная программа \"Развитие торговли Кромского района на 2011-2015 годы\"",206,6,2.91,6,2.91]
[null,"в том числе"]
[null,"местный бюджет",206,6,2.91,6,2.91]
[null,"областной бюджет","-","-","-","-","-"]
[null,"федеральный бюджет","-","-","-","-","-"]
[null,"внебюджетные источники","-","-","-","-","-"]
[null,"в том числе по мероприятиям:"]
[null,"1. Разработка и утверждение схемы размещения нестационарных торговых объектов с учётом нормативов  минимальной обеспеченности населения площадью торговых объектов и размещение её в информационно-коммуникационной сети \"Интернет\"","-","-","-","-","-","Обеспеченность населения площадью торговых объектов с учётом нормативов минимальной обеспеченности",null,"Постановлениями сельских и городского поселений утверждены схемы размещения нестационарных торговых объектов на 2013 год"]
[null,"2. Разработка и принятие нормативных актов, регулирующих торговую деятельность","-","-","-","-","-","Совершенствование нормативной базы",null,"В целях совершенствования нормативной базы  в 2012 году  были приняты  следующие муниципальные правовые акты: -Постановления администраций сельских и городского поселений \"Об утверждении схем размещения нестационарных торговых объектов\";  -Постановление администрации Кромского района \"Об утверждении Плана мероприятий по организации ярмарок и продажи товаров на них на территории Кромского района на 2012 год"]
[null,"3. Расширение ассортимента реализуемой продукции предприятиями торговли","-","-","-","-","-","Обеспечение доступности потребительского рынка, более полное удовлетворение спроса населения на товары"]
[null,"4. Удовлетворение жителей отдалённых населённых пунктов в товарах и услугах",200,"-","-","-","-","Обеспечение товарами первой необходимости жителей отдалённых населённых пунктов не выполнено, субсидия не выделялась"]
[null,"в том числе:"]
[null,"местный бюджет",200,"-","-","-","-"]
[null,"5. Проведение районного конкурса \"Лучшее предприятие розничной торговли\"",6,6,100,6,100,"Повышение уровня профессионального мастерства",null,"Проведен районный конкурс на \"Лучшее предприятие розничной торговли\". В результате 1-е место заняла ИП Смагина Т.Г. м-н \"Новинка\", 2-е место - ПО \"Кооператор\"                     м-н \"Виктория\",                 3-е место -                       ИП Барабашов Ю.А.         м-н \"Тандем\""]
["18.","Муниципальная целевая программа \"Поддержка и развитие малого и среднего предпринимательства в Кромском районе Орловской области на 2012-2014 годы\"",65,0,0,0,0,"На 1 января 2013 года в Кромском районе осуществляет деятельность 442 индивидуальных предпринимателя "]
[null,"в том числе"]
[null,"местный бюджет",65,0,0,0,0]
[null,"областной бюджет","-","-","-","-","-"]
[null,"федеральный бюджет","-","-","-","-","-"]
[null,"внебюджетные источники","-","-","-","-","-"]
[null,"в том числе по мероприятиям:"]
[null,"1. Совершенствование  рыночных механизмов  и правового   обеспечения \nдеятельности  субъектов  малого и среднего  предпринимательства\n","-","-","-","-","-","В целях поддержки предприятий малого и среднего бизнеса, в районе  для расчета суммы единого налога на вмененный доход на  протяжении 5 лет  не меняется корректирующий коэффициент К2, в результате не увеличивается сумма ЕНВД к уплате предприятиями малого и среднего бизнеса."]
[null,"2. Обеспечение финансовой и имущественной поддержки субъектов малого и среднего предпринимательства\n\n",65,0,0,0,0,"Имущественная поддержка субъектов малого и среднего предпринимательства происходит в форме аренды муниципального имущества, для осуществления предпринимательской деятельности. По состоянию на 01.01.2013 года заключен 21 договор с   субъектами малого и среднего предпринимательства на  передоставление  в аренду муниципального имущества, общей площадью 1621,8 м²"]
[null,"в т.ч. местный бюджет",65,0,0,0,0]
[null,"в том числе по мероприятиям:",null,null,null,null,null,"Денежные средства из районного бюджета не выделялись, так как никто  из субъектов малого предпринимательства  не обращался за получением финансовых средств"]
[null,"2.1. Субсидирование части затрат начинающим субъектам малого и среднего предпринимательства по возмещению части затрат",50,0,0,0,0]
[null,"в т.ч. местный бюджет",50,0,0,0,0]
[null,"2.2.Софинансирование на реализацию мероприятий по субсидированию начинающих предпринимателей в рамках долгосрочной областной целевой программы «Развитие и поддержка малого и среднего предпринимательства в Орловской области на 2012-2020 годы»",15,0,0,0,0,"Кромской район не принимал участия в конкурсных отборах на предоставление  сбсидий району."]
[null,"в т.ч. местный бюджет",15,0,0,0,0]
[null,"3. Содействие в области инноваций и промышленного производства","-","-","-","-","-","О мерах муниципальной и государственной поддержки за 2012 год проконсультировано 49 предприниамателей.                                                       На сайте администрации Кромского района в разделе \"Предпринимательство\" регулярно обновляется информация."]
["19.","Муниципальная целевая программа \"Улучшение условий и охраны труда в Кромском районе на 2012-2014 годы\"",{"$f":"C334+C337","v":8482.2000000000007},{"$f":"D334+D337","v":10390},{"$f":"D332/C332*100","v":122.49180637098864},{"$f":"F334+F337","v":10390},{"$f":"F332/D332*100","v":100},"Улучшение условий труда работающих"]
[null,"в том числе"]
[null,"местный бюджет",4,4,{"$f":"D334/C334*100","v":100},4,100]
[null,"областной бюджет"]
[null,"федеральный бюджет"]
[null,"внебюджетные источники",8478.2000000000007,10386,{"$f":"D337/C337*100","v":122.5024179660777},10386,{"$f":"F337/D337*100","v":100}]
[null,"в том числе по мероприятиям:"]
[null,"1. Совершенствование взаимодействия органов местного самоуправления с органамми надзора  и контроля  по вопросам  совершенствования системы управления охраны труда  в Кромском районе."," - "," - "," - "," - "," - ","Постоянно готовится информация о несчастных случаях на производстве, участие представителей органов муниципальной власти района и профсоюзных органов в расследовании несчастных случаев на производстве; проводится анализ состояния условий и охраны труда, причин производственного травматизма и профессиональной заболеваемости в организациях района "]
[null,"2. Развитие районной инфраструктуры обеспечения  охраны труда"," - "," - "," - "," - "," - ","Материалы  по вопросам охраны труда размещаются в районной газете \"Заря\" и на сайте администрации, подготвлен ежегодный доклад о состоянии условий и охраны труда в Кромском районе.",null,"Размещено 5 материалов по вопросам охраны труда , проведено 4 заседания межведомственной комиссии по охране труда"]
[null,"3. Мероприятия, направленные на улучшение условий и охраны труда в организациях района, всего",{"$f":"C332","v":8482.2000000000007},{"$f":"D332","v":10390},{"$f":"E332","v":122.49180637098864},{"$f":"F332","v":10390},{"$f":"G332","v":100},"В 2012 году  отсутствовали случаи производственного травматизма со смертельным и тяжелым исходом. В 2013 году проведен районный смотр - конкурс по охране труда за 2012 год. В результате 1 место заняло - ООО \"Кромской комбикормовый завод\",  2 место - ОАО \"Орелоблгаз\" МГТ \"Кромымежрайгаз\", 3 место - ПО \"Хлебозавод\".",null,"Из 176 мероприятий выполнено 162, частично - 7, не выполнено - 7, по итогам 2012г. проведен районный смотр - конкурс по охране труда. Затраты  по охране труда на 1 работающего составили в 2012 году 3259 руб., что в 1,6 раза больше, чем в 2011 году. Работодатели стали уделять большее внимание вопросам охраны труда"]
[null,"в т.ч."]
[null,"местный бюджет",4,4,100,4,100]
[null,"областной бюджет"]
[null,"федеральный бюджет"]
[null,"внебюджетные источники",{"$f":"C337","v":8478.2000000000007},{"$f":"D337","v":10386},{"$f":"E337","v":122.5024179660777},{"$f":"F337","v":10386},{"$f":"G337","v":100}]
[null,"4. Повышение эффективности  контроля за охраной труда."," - "," - "," - "," - "," - ","Проводятся: анализ материалов расследования несчастных случаев на производстве на основании данных Госинспекци труда в Орловской области и систематический контроль за соблюдением требований охраны труда в организациях района во взаимодействии с органами государственного надзора и контроля с профсоюзами.",null,"В результате в 8 организациях  района  имеются освобожденные специалисты по охране труда, в остальных - возложены  обязанности."]
["20.","Программа содействия занятости населения Кромского района на 2010-2013 годы",7602.5,7609.8,100,7609.8,100,"заявлена в течение отчетного периода 751 вакансия;\nтрудоустроено 235 чел,в т.ч.на постоянную работу 87чел.;\nорганизованы общественные работы для 56 чел.;\nучаствовали в программах социальной адаптации на рынке труда-29чел.;\nорганизовано и проведено-3 ярмарки вакансий и учебных рабочих мест;\nоткрыли свое дело 7чел.безработных граждан;\nорганизовано временное трудоустройство 99чел.несовершеннолетних граждан в возрасте от 14 до 18 лет;\nорганизовано временное трудоустройство 3 безработных граждан в возрасте от 18 до 20 лет из числа выпускников учреждений начального и среднего профессионального образования, ищущих работу впервые;\nорганизовано временное трудоустройство 7 чел.безработных граждан,испытывающих трудности в поиске работы;\nоказаны услуги по профессиональной ориентации 369 гражданам;\nнаправлено на профессиональное обучение -37 чел.безработных граждан;\nпродолжительность регистрируемой безработицы составила 3,4 мес.;\nуровень регистрируемой безработицы составил-1,1%\n\n",null,"1.Уровень общей безработицы составил 16,2%\n2.Уровень регистрируемой безработицы(в среднегодовом исчислении) составил -1,1%\n3.Средняя продолжительность регистрируемой безработицы-3,4месяца\n4.Соотношение спроса и предложения рабочей силы на фиксированном рынке труда- 0,97 чел.на 1 вакансию\n5.Степень заполнения вакансий-  25,2%\n6.Доля трудоустроенных граждан при содействии службы занятости в общем трудоустройстве-39,5%\n7.Затраты средств областного бюджета на одного трудоустроенного при содействии службы занятости – 26074руб\n8.Доля граждан принявших участие в общественных и временных работах-9,4%\n9.Численность безработных граждан,прошедших профессиональную подготовку -37чел.\n10.Численность безработных граждан,получивших услуги по профориентации-369чел.\n11.Оказание содействия самозанятости -7 чел.\n12.Численность безработных граждан, получающих пособие, в среднемесячном исчислении-102чел\n13.Численность граждан,получающих стипендию-37чел.\n\n\n\n\n\n\n\n\n\n\n\n"]
[null,"в том числе :"]
[null,"местный бюджет",105,93,88.6,93,100]
[null,"областной бюджет",0,721.3,null,721.3,100]
[null,"федеральный бюджет",6457.9,6069.9,94,6069.9,100]
[null,"внебюджетные источники",1039.5999999999999,725.6,70,725.6,100]
[null,"в том числе по мероприятиям"]
[null,"1. Содействие гражданам в поиске подходящей работы",0,0,"-",0,"-"]
[null,"2.Содействие работодателям в подборе необходимых работников",0,0,"-",0,"-"]
[null,"3.Информирование о положении на рынке труда",3,0,0,0,0]
[null,"4. Организация ярмарок вакансий и учебных рабочих мест",12,13,108.3,13,100]
[null,"5. Организация профессиональной ориентации граждан в целях выбора сферы деятельности(профессии),трудоустройства, профессионального обучения",0.5,20,"в 4 раза",20,100]
[null,"6. Психологическая поддержка безработных граждан",11.5,0,0,0,0]
[null,"7. Профессиональная подготовка,переподготовка и повышение квалификации безработных граждан",434.5,201,46.3,201,100]
[null,"8. Организация проведения оплачиваемых общественных работ",953.2,623,65.400000000000006,623,100]
[null,"9. Организация временного трудоустройства несовершеннолетних граждан в возрасте от 14-18 лет в свободное от учебы время",385.4,377.3,97.9,377.3,100]
[null,"10. Организация временного трудоустройства безработных граждан,испытывающих трудности в поиске работы, в возрасте от 18-20 лет из числа выпускников образовательных учреждений начального и среднего профессионального образования, ищущих работу впервые",46.8,30.2,64.5,30.2,100]
[null,"11. Организация временного трудоустройства безработных граждан, испытывающих трудности в поиске работы",103.4,67.2,65,67.2,100]
[null,"12. Социальная адаптация безработных граждан на рынке труда",1.8,0,"-",0,"-"]
[null,"13. Содействие самозанятости безработных граждан",8.6,208.2,"в 24 раза",208.2,100]
[null,"14. Содействие гражданам в переселении для работы в сельской местности",1,0,"-",0,"-"]
[null,"15. Осуществление социальных выплат гражданам в соответствии с Законом о занятости граждан РФ",5728.8,6069.9,106,6069.9,100]
["21.","Федеральная целевая программа \"Социальное развитие села                до 2013 г.\"",{"$f":"C376+C382","v":5596.2},{"$f":"D376+D382","v":5596.2},100,5596.2,100]
[null,"в том числе"]
[null,"местный бюджет",{"$f":"C378+C384","v":1225.3999999999999},1225.4000000000001,100,1225.4000000000001,100]
[null,"областной бюджет",{"$f":"C379+C385","v":2755.2},2755.2,100,2755.2,100]
[null,"федеральный бюджет",{"$f":"C380+C386","v":1615.6},1615.6,100,1615.6,100]
[null,"в том числе по мероприятиям:"]
[null,"Строительство водопровода",5183.2,5183.2,100,5183.2,100,"построен водопровод в д.Большая Колчева -          2,5 км"]
[null,"в том числе"]
[null,"местный бюджет",1153.5999999999999,1153.5999999999999,100,1153.5999999999999,100]
[null,"областной бюджет",2670.5,2670.5,100,2670.5,100]
[null,"федеральный бюджет",1359.1,1359.1,100,1359.1,100]
[]
[null,"Предоставление выплаты молодой семье на селе на улучшение жилищных условий ",413,413,100,413,100,"предоставлена выплата 1 семье Карнюшкиных."]
[null,"в том числе"]
[null,"местный бюджет",71.8,71.8,100,71.8,100]
[null,"областной бюджет",84.7,84.7,100,84.7,100]
[null,"федеральный бюджет",256.5,256.5,100,256.5,100]
[null,"Из общей суммы капитальные вложения:"]
[null,"Строительство водопровода",5183.2,5183.2,100,5183.2,100]
[null,"в том числе"]
[null,"местный бюджет",1153.5999999999999,1153.5999999999999,100,1153.5999999999999,100]
[null,"областной бюджет",2670.5,2670.5,100,2670.5,100]
[null,"федеральный бюджет",1359.1,1359.1,100,1359.1,100]
["22.","Региональная программа \"Модернизация  региональных систем общего образования\"",4412.8,4404.8,99.8,4404.8,100,"Проведены текущие ремонты в МБОУ \"Кромская средняя школа\", МБОУ \"Шаховская средняя школа\", МБОУ \"Кутафинская средняя школа\""]
[null,"в том числе"]
[null,"местный бюджет",277,269,97,269,100]
[null,"областной бюджет",4135.8,4135.8,100,4135.8,100]
[null,"федеральный бюджет"]

{"sheet":"Лист3","index":1,"n_rows":0,"n_cols":0,"rows_kept":0,"cut":false,"hidden":false,"merged":[]}